fUSD/lending_fUSD_20250911
["ID","MTS","AMOUNT","RATE_DAILY","PERIOD"]
[384929566,1757627537692,-2318.27,0.00029315,7]
[384929567,1757627537702,-1281.61,0.00029315,7]
[384929568,1757627537711,-2011.65,0.00029315,7]
[384929569,1757627537721,-746.18,0.00029315,7]
[384929570,1757627537731,-1166.63,0.00029315,7]
[384929571,1757627537740,-400.0,0.00029315,7]
[384929572,1757627537750,-400.0,0.00029315,7]
[384929573,1757627537760,-400.0,0.00029315,7]
[384929574,1757627537769,-1306.49,0.00029315,7]
[384929575,1757627537779,-1825.7,0.00029315,7]
[384929576,1757627537789,-762.39,0.00029315,7]
[384929577,1757627537799,-3800.69,0.00029315,7]
[384929578,1757627537808,-400.0,0.00029315,7]
[384929579,1757627537818,-2183.28,0.00029315,7]
[384929580,1757627537828,-631.92,0.00029315,7]
[384929581,1757627537838,-2113.02,0.00029315,7]
[384929582,1757627537848,-412.34,0.00029315,7]
[384929583,1757627537857,-478.43,0.00029315,7]
[384929584,1757627537867,-764.83,0.00029315,7]
[384929585,1757627537877,-658.91,0.00029315,7]
[384929586,1757627537886,-2212.12,0.00029315,7]
[384929587,1757627537896,-400.0,0.00029315,7]
[384929588,1757627537907,-1409.6,0.00029315,7]
[384929589,1757627537917,-2621.3,0.00029315,7]
[384929590,1757627537927,-1935.52,0.00029315,7]
[384929591,1757627537936,-400.0,0.00029315,7]
[384929592,1757627537946,-792.93,0.00029315,7]
[384929593,1757627537955,-1641.57,0.00029315,7]
[384929594,1757627537966,-400.0,0.00029315,7]
[384929595,1757627537975,-2511.53,0.00029315,7]
[384929596,1757627537985,-241.96854444,0.00029315,7]
[384929597,1757627537994,-415.19,0.00029315,7]
[384929598,1757627538004,-400.0,0.00029315,7]
[384929599,1757627538013,-1999.25,0.00029315,7]
[384929600,1757627538023,-400.0,0.00029315,7]
[384929601,1757627538034,-935.63,0.00029315,7]
[384929602,1757627538044,-561.05,0.00029315,7]
[384929603,1757627538054,-1937.06,0.00029315,7]
[384929604,1757627538063,-622.55,0.00029315,7]
[384929605,1757627538074,-605.95,0.00029315,7]
[384929606,1757627538084,-625.67,0.00029315,7]
[384929607,1757627538095,-2434.87,0.00029315,7]
[384929608,1757627538105,-1967.02,0.00029315,7]
[384929609,1757627538115,-2064.83,0.00029315,7]
[384929610,1757627538126,-5081.16,0.00029315,7]
[384929611,1757627538136,-400.0,0.00029315,7]
[384929612,1757627538146,-2357.52,0.00029315,7]
[384929613,1757627538156,-1918.79,0.00029315,7]
[384929614,1757627538167,-688.97,0.00029315,7]
[384929615,1757627538177,-2563.41,0.00029315,7]
[384929616,1757627538187,-400.0,0.00029315,7]
[384929617,1757627538196,-400.0,0.00029315,7]
[384929618,1757627538207,-1378.05,0.00029315,7]
[384929619,1757627538217,-1782.99,0.00029315,7]
[384929620,1757627538227,-752.99,0.00029315,7]
[384929621,1757627538237,-2353.03,0.00029315,7]
[384929622,1757627538247,-400.0,0.00029315,7]
[384929623,1757627538258,-1193.85,0.00029315,7]
[384929624,1757627538268,-400.0,0.00029315,7]
[384929625,1757627538279,-1178.69,0.00029315,7]
[384929626,1757627538288,-1935.24,0.00029315,7]
[384929627,1757627538299,-1221.61,0.00029315,7]
[384929628,1757627538309,-429.41,0.00029315,7]
[384929629,1757627538319,-459.96,0.00029315,7]
[384929630,1757627538329,-2252.22,0.00029315,7]
[384929631,1757627538340,-735.02,0.00029315,7]
[384929632,1757627538350,-1279.89,0.00029315,7]
[384929633,1757627538360,-400.0,0.00029315,7]
[384929634,1757627538370,-2407.5,0.00029315,7]
[384929635,1757627538380,-2161.65,0.00029315,7]
[384929636,1757627538390,-1425.68,0.00029315,7]
[384929637,1757627538400,-1362.92,0.00029315,7]
[384929638,1757627538411,-1095.6,0.00029315,7]
[384929639,1757627538422,-2476.85,0.00029315,7]
[384929640,1757627538432,-1991.02,0.00029315,7]
[384929641,1757627538443,-400.0,0.00029315,7]
[384929642,1757627538453,-400.0,0.00029315,7]
[384929643,1757627538463,-2430.43,0.00029315,7]
[384929644,1757627538473,-465.81,0.00029315,7]
[384929645,1757627538483,-2085.01,0.00029315,7]
[384929646,1757627538493,-2781.72,0.00029315,7]
[384929647,1757627538502,-1977.7,0.00029315,7]
[384929648,1757627538512,-400.0,0.00029315,7]
[384929649,1757627538522,-2696.49,0.00029315,7]
[384929650,1757627538531,-430.58,0.00029315,7]
[384929651,1757627538541,-3938.86,0.00029315,7]
[384929652,1757627538551,-2712.62,0.00029315,7]
[384929653,1757627538561,-4392.91,0.00029315,7]
[384929654,1757627538570,-1492.88,0.00029315,7]
[384929655,1757627538580,-400.0,0.00029315,7]
[384929656,1757627538590,-1464.34,0.00029315,7]
[384929657,1757627538600,-591.66,0.00029315,7]
[384929658,1757627538610,-400.0,0.00029315,7]
[384929659,1757627538620,-400.0,0.00029315,7]
[384929660,1757627538630,-666.94,0.00029315,7]
[384929661,1757627538640,-1806.44,0.00029315,7]
[384929662,1757627538650,-400.0,0.00029315,7]
[384929663,1757627538660,-1981.45,0.00029315,7]
[384929664,1757627538670,-2436.65,0.00029315,7]
[384929665,1757627538679,-3388.27,0.00029315,7]
[384929666,1757627538689,-406.24,0.00029315,7]
[384929667,1757627538699,-881.67,0.00029315,7]
[384929668,1757627538708,-1172.06,0.00029315,7]
[384929669,1757627538718,-780.5,0.00029315,7]
[384929670,1757627538728,-554.15,0.00029315,7]
[384929671,1757627538738,-4294.22,0.00029315,7]
[384929672,1757627538748,-2452.85,0.00029315,7]
[384929673,1757627538758,-438.53,0.00029315,7]
[384929674,1757627538768,-604.66,0.00029315,7]
[384929675,1757627538778,-534.25,0.00029315,7]
[384929676,1757627538788,-2886.24,0.00029315,7]
[384929677,1757627538798,-400.0,0.00029315,7]
[384929678,1757627538808,-3147.12,0.00029315,7]
[384929679,1757627538818,-400.0,0.00029315,7]
[384929680,1757627538829,-400.0,0.00029315,7]
[384929681,1757627538838,-2500.66,0.00029315,7]
[384929682,1757627538848,-1752.06,0.00029315,7]
[384929683,1757627538858,-400.0,0.00029315,7]
[384929684,1757627538868,-3110.75,0.00029315,7]
[384929685,1757627538878,-1536.25,0.00029315,7]
[384929686,1757627538888,-3514.52,0.00029315,7]
[384929687,1757627538898,-1998.85,0.00029315,7]
[384929688,1757627538908,-851.92,0.00029315,7]
[384929689,1757627538918,-2234.85,0.00029315,7]
[384929690,1757627538928,-1639.17,0.00029315,7]
[384929691,1757627538938,-2407.64,0.00029315,7]
[384929692,1757627538949,-400.0,0.00029315,7]
[384929693,1757627538959,-1046.34,0.00029315,7]
[384929694,1757627538970,-1220.02,0.00029315,7]
[384929695,1757627538979,-2770.33,0.00029315,7]
[384929696,1757627538989,-482.39,0.00029315,7]
[384929697,1757627538999,-436.15,0.00029315,7]
[384929698,1757627539009,-1846.46,0.00029315,7]
[384929699,1757627539019,-400.0,0.00029315,7]
[384929700,1757627539029,-400.0,0.00029315,7]
[384929701,1757627539039,-2184.88,0.00029315,7]
[384929702,1757627539049,-1730.33,0.00029315,7]
[384929703,1757627539059,-1786.28,0.00029315,7]
[384929704,1757627539068,-1957.68,0.00029315,7]
[384929705,1757627539079,-1265.01,0.00029315,7]
[384929706,1757627539089,-407.19,0.00029315,7]
[384929707,1757627539099,-688.3,0.00029315,7]
[384929708,1757627539109,-2703.11,0.00029315,7]
[384929709,1757627539119,-678.34,0.00029315,7]
[384929710,1757627539129,-2568.73,0.00029315,7]
[384929711,1757627539139,-3106.86,0.00029315,7]
[384929712,1757627539149,-1591.84,0.00029315,7]
[384929713,1757627539159,-423.35,0.00029315,7]
[384929714,1757627539169,-2512.36,0.00029315,7]
[384929715,1757627539179,-2358.62,0.00029315,7]
[384929716,1757627539188,-655.76,0.00029315,7]
[384929717,1757627539198,-655.88,0.00029315,7]
[384929718,1757627539208,-1989.93,0.00029315,7]
[384929719,1757627539218,-400.0,0.00029315,7]
[384929720,1757627539228,-6625.15,0.00029315,7]
[384929721,1757627539239,-400.0,0.00029315,7]
[384929722,1757627539250,-1565.73,0.00029315,7]
[384929723,1757627539260,-2433.07,0.00029315,7]
[384929724,1757627539270,-400.0,0.00029315,7]
[384929725,1757627539280,-1949.62,0.00029315,7]
[384929726,1757627539290,-2320.6,0.00029315,7]
[384929727,1757627539300,-400.0,0.00029315,7]
[384929728,1757627539310,-2218.78,0.00029315,7]
[384929729,1757627539320,-1700.41,0.00029315,7]
[384929730,1757627539330,-581.88,0.00029315,7]
[384929731,1757627539344,-3743.48,0.00029315,7]
[384929732,1757627539355,-601.83,0.00029315,7]
[384929733,1757627539365,-400.0,0.00029315,7]
[384929734,1757627539375,-2332.54,0.00029315,7]
[384929735,1757627539387,-481.03947468,0.00029315,7]
[384929736,1757627539398,-2249.08,0.00029315,7]
[384929737,1757627539408,-726.15,0.00029315,7]
[384929738,1757627539420,-2742.88,0.00029315,7]
[384929739,1757627539431,-877.79,0.00029315,7]
[384929740,1757627539440,-2125.99,0.00029315,7]
[384929741,1757627539451,-400.0,0.00029315,7]
[384929742,1757627539460,-400.0,0.00029315,7]
[384929743,1757627539470,-1691.78,0.00029315,7]
[384929744,1757627539480,-2192.92,0.00029315,7]
[384929745,1757627539489,-2438.57,0.00029315,7]
[384929746,1757627539499,-1723.17,0.00029315,7]
[384929747,1757627539510,-2371.58,0.00029315,7]
[384929748,1757627539519,-882.4,0.00029315,7]
[384929749,1757627539529,-2985.19,0.00029315,7]
[384929750,1757627539538,-2972.96,0.00029315,7]
[384929751,1757627539548,-512.39,0.00029315,7]
[384929752,1757627539558,-849.58,0.00029315,7]
[384929753,1757627539568,-3150.88,0.00029315,7]
[384929754,1757627539578,-2678.71,0.00029315,7]
[384929755,1757627539588,-1003.52,0.00029315,7]
[384929756,1757627539599,-764.35,0.00029315,7]
[384929757,1757627539609,-2234.94,0.00029315,7]
[384929758,1757627539619,-2578.26,0.00029315,7]
[384929759,1757627539630,-1462.94,0.00029315,7]
[384929760,1757627539640,-1828.11,0.00029315,7]
[384929761,1757627539650,-470.08,0.00029315,7]
[384929762,1757627539660,-1307.56,0.00029315,7]
[384929763,1757627539670,-400.0,0.00029315,7]
[384929764,1757627539679,-1772.99,0.00029315,7]
[384929765,1757627539689,-2097.33,0.00029315,7]
[384929766,1757627539700,-933.0,0.00029315,7]
[384929767,1757627539710,-952.28,0.00029315,7]
[384929768,1757627539989,-1662.68,0.00029315,7]
[384929769,1757627540048,-610.96,0.00029315,7]
[384929770,1757627540058,-7841.89,0.00029315,7]
[384929771,1757627540067,-423.53342316,0.00029315,7]
[384929772,1757627540076,-400.0,0.00029315,7]
[384929773,1757627540086,-400.0,0.00029315,7]
[384929774,1757627540095,-1587.28,0.00029315,7]
[384929775,1757627540104,-1604.78,0.00029315,7]
[384929776,1757627540114,-2174.86,0.00029315,7]
[384929777,1757627540123,-11061.06,0.00029315,7]
[384929778,1757627540132,-1272.03,0.00029315,7]
[384929779,1757627540142,-400.0,0.00029315,7]
[384929780,1757627540151,-596.32,0.00029315,7]
[384929781,1757627540162,-565.46,0.00029315,7]
[384929782,1757627540171,-2131.53,0.00029315,7]
[384929783,1757627540181,-2498.42,0.00029315,7]
[384929784,1757627540190,-6488.57,0.00029315,7]
[384929785,1757627540200,-5525.7,0.00029315,7]
[384929786,1757627540209,-1601.69,0.00029315,7]
[384929787,1757627540219,-455.17,0.00029315,7]
[384929788,1757627540228,-1668.79,0.00029315,7]
[384929789,1757627540238,-1352.16,0.00029315,7]
[384929790,1757627540247,-11877.61,0.00029315,7]
[384929791,1757627540257,-545.141506,0.00029315,7]
[384929792,1757627540267,-2986.7,0.00029315,7]
[384929793,1757627540276,-400.0,0.00029315,7]
[384929794,1757627540286,-400.0,0.00029315,7]
[384929795,1757627540295,-2328.89,0.00029315,7]
[384929796,1757627540305,-4724.84,0.00029315,7]
[384929797,1757627540315,-400.0,0.00029315,7]
[384929798,1757627540324,-2071.12,0.00029315,7]
[384929799,1757627540334,-3292.32,0.00029315,7]
[384929800,1757627540347,-400.0,0.00029315,7]
[384929801,1757627540357,-400.0,0.00029315,7]
[384929802,1757627540367,-657.95,0.00029315,7]
[384929803,1757627540377,-2017.2,0.00029315,7]
[384929804,1757627540387,-2362.15,0.00029315,7]
[384929805,1757627540396,-1981.94,0.00029315,7]
[384929806,1757627540406,-914.7,0.00029315,7]
[384929807,1757627540415,-710.2,0.00029315,7]
[384929808,1757627540425,-847.93,0.00029315,7]
[384929809,1757627540434,-1045.52,0.00029315,7]
[384929810,1757627540444,-752.72,0.00029315,7]
[384929811,1757627540453,-2021.8,0.00029315,7]
[384929812,1757627540463,-2367.19,0.00029315,7]
[384929813,1757627540472,-1204.45,0.00029315,7]
[384929814,1757627540482,-1922.67,0.00029315,7]
[384929815,1757627540491,-2147.9,0.00029315,7]
[384929816,1757627540500,-400.0,0.00029315,7]
[384929817,1757627540509,-610.19,0.00029315,7]
[384929818,1757627540519,-737.4,0.00029315,7]
[384929819,1757627540529,-2005.27,0.00029315,7]
[384929820,1757627540538,-2282.8,0.00029315,7]
[384929821,1757627540547,-868.86,0.00029315,7]
[384929822,1757627540557,-2067.86,0.00029315,7]
[384929823,1757627540567,-1662.86,0.00029315,7]
[384929824,1757627540576,-339.78,0.00029315,7]
[384929825,1757627540586,-581.46,0.00029315,7]
[384929826,1757627540596,-973.3,0.00029315,7]
[384929827,1757627540605,-2104.81,0.00029315,7]
[384929828,1757627540614,-901.74,0.00029315,7]
[384929829,1757627540624,-1564.75,0.00029315,7]
[384929830,1757627540633,-3042.61,0.00029315,7]
[384929831,1757627540642,-633.32,0.00029315,7]
[384929832,1757627540652,-406.9,0.00029315,7]
[384929833,1757627540661,-2798.29,0.00029315,7]
[384929834,1757627540671,-473.92,0.00029315,7]
[384929835,1757627540680,-433.58227182,0.00029315,7]
[384929836,1757627540692,-1232.08,0.00029315,7]
[384929837,1757627540703,-825.48,0.00029315,7]
[384929838,1757627540712,-1649.61,0.00029315,7]
[384929839,1757627540721,-400.0,0.00029315,7]
[384929840,1757627540731,-400.0,0.00029315,7]
[384929841,1757627540741,-401.49,0.00029315,7]
[384929842,1757627540751,-493.86,0.00029315,7]
[384929843,1757627540760,-2428.81,0.00029315,7]
[384929844,1757627540770,-545.25,0.00029315,7]
[384929845,1757627540779,-3292.07,0.00029315,7]
[384929846,1757627540789,-400.0,0.00029315,7]
[384929847,1757627540799,-1770.26,0.00029315,7]
[384929848,1757627540810,-400.0,0.00029315,7]
[384929849,1757627540820,-575.7,0.00029315,7]
[384929850,1757627540830,-400.0,0.00029315,7]
[384929851,1757627540839,-1537.35,0.00029315,7]
[384929852,1757627540851,-2235.0,0.00029315,7]
[384929853,1757627540861,-400.0,0.00029315,7]
[384929854,1757627540871,-4315.46,0.00029315,7]
[384929855,1757627540880,-2043.23,0.00029315,7]
[384929856,1757627540890,-542.72,0.00029315,7]
[384929857,1757627540900,-497.85,0.00029315,7]
[384929858,1757627540909,-400.0,0.00029315,7]
[384929859,1757627540920,-774.82,0.00029315,7]
[384929860,1757627540930,-2030.44,0.00029315,7]
[384929861,1757627540939,-444.49,0.00029315,7]
[384929862,1757627540949,-400.0,0.00029315,7]
[384929863,1757627540959,-2457.19,0.00029315,7]
[384929864,1757627540969,-400.0,0.00029315,7]
[384929865,1757627540978,-2221.42,0.00029315,7]
[384929866,1757627540988,-2267.83,0.00029315,7]
[384929867,1757627540998,-400.0,0.00029315,7]
[384929868,1757627541008,-400.0,0.00029315,7]
[384929869,1757627541019,-1381.33,0.00029315,7]
[384929870,1757627541028,-400.0,0.00029315,7]
[384929871,1757627541038,-400.0,0.00029315,7]
[384929872,1757627541047,-977.79,0.00029315,7]
[384929873,1757627541058,-2044.64,0.00029315,7]
[384929874,1757627541069,-596.22,0.00029315,7]
[384929875,1757627541079,-400.0,0.00029315,7]
[384929876,1757627541090,-1597.41,0.00029315,7]
[384929877,1757627541101,-1990.61,0.00029315,7]
[384929878,1757627541111,-400.0,0.00029315,7]
[384929879,1757627541121,-1787.37,0.00029315,7]
[384929880,1757627541132,-1505.85000884,0.00029316,5]
[384929881,1757627541142,-161.80732417,0.00029316,2]
[384929882,1757627541152,-2000.0,0.00029316,5]
[384929883,1757627541162,-2000.0,0.00029316,5]
[384929884,1757627541171,-506.54910798,0.00029316,5]
[384929885,1757627541180,-773.43966844,0.00029368,5]
[384929886,1757627541191,-235.13,0.00029388,2]
[384929887,1757627541202,-524.95802244,0.00029481,7]
[384929888,1757627541211,-256.23390922,0.00029489,2]
[384929889,1757627541221,-486193.38725975,0.000295,2]
[384929890,1757627541231,-1039.20552439,0.00029533,5]
[384929891,1757627541241,-1070.90844079,0.00029533,5]
[384929892,1757627541251,-1110.22379897,0.00029533,5]
[384929893,1757627541260,-1088.19032659,0.00029533,5]
[384929894,1757627541270,-1004.11475104,0.00029533,5]
[384929895,1757627541279,-1247.6459762,0.00029547,2]
[384929896,1757627541289,-953.95123107,0.00029568,5]
[384929897,1757627541298,-686.55226769,0.00029568,5]
[384929898,1757627541308,-1500.0,0.00029568,5]
[384929899,1757627541318,-1500.0,0.00029568,5]
[384929900,1757627541327,-390.0,0.0002958,2]
[384929901,1757627541339,-500.0,0.00029589,7]
[384929902,1757627541349,-500.0,0.00029589,2]
[384929903,1757627541360,-500.0,0.00029589,7]
[384929904,1757627541369,-500.0,0.00029589,7]
[384929905,1757627541379,-500.0,0.00029589,7]
[384929906,1757627541388,-150.0,0.00029589,7]
[384929907,1757627541398,-500.0,0.00029589,7]
[384929908,1757627541407,-500.0,0.00029589,7]
[384929909,1757627541417,-229.65664167,0.00029589,2]
[384929910,1757627541428,-500.0,0.00029589,7]
[384929911,1757627541437,-3492.0,0.00029589,7]
[384929912,1757627541447,-400.0,0.00029589,7]
[384929913,1757627541456,-400.0,0.00029589,7]
[384929914,1757627541466,-2430.85,0.00029589,7]
[384929915,1757627541475,-537.34,0.00029589,7]
[384929916,1757627541485,-400.0,0.00029589,7]
[384929917,1757627541494,-436.24,0.00029589,7]
[384929918,1757627541503,-622.97,0.00029589,7]
[384929919,1757627541512,-400.0,0.00029589,7]
[384929920,1757627541521,-602.77,0.00029589,7]
[384929921,1757627541531,-1543.01,0.00029589,7]
[384929922,1757627541541,-400.0,0.00029589,7]
[384929923,1757627541550,-502.36,0.00029589,7]
[384929924,1757627541560,-607.91,0.00029589,7]
[384929925,1757627541569,-474.04,0.00029589,7]
[384929926,1757627541579,-422.29,0.00029589,7]
[384929927,1757627541588,-521.3,0.00029589,7]
[384929928,1757627541598,-578.72,0.00029589,7]
[384929929,1757627541607,-1554.85,0.00029589,7]
[384929930,1757627541617,-400.0,0.00029589,7]
[384929931,1757627541626,-400.0,0.00029589,7]
[384929932,1757627541636,-1824.84,0.00029589,7]
[384929933,1757627541645,-1088.02,0.00029589,7]
[384929934,1757627541655,-1205.28,0.00029589,7]
[384929935,1757627541665,-432.28,0.00029589,7]
[384929936,1757627541674,-400.0,0.00029589,7]
[384929937,1757627541684,-400.0,0.00029589,7]
[384929938,1757627541693,-832.75,0.00029589,7]
[384929939,1757627541703,-400.0,0.00029589,7]
[384929940,1757627541712,-904.85,0.00029589,7]
[384929941,1757627541722,-685.8,0.00029589,7]
[384929942,1757627541731,-517.06,0.00029589,7]
[384929943,1757627541740,-1008.26,0.00029589,7]
[384929944,1757627541750,-1113.46,0.00029589,7]
[384929945,1757627541759,-400.0,0.00029589,7]
[384929946,1757627541768,-655.45,0.00029589,7]
[384929947,1757627541778,-400.0,0.00029589,7]
[384929948,1757627541787,-593.77,0.00029589,7]
[384929949,1757627541796,-807.62,0.00029589,7]
[384929950,1757627541806,-738.23,0.00029589,7]
[384929951,1757627541816,-567.18,0.00029589,7]
[384929952,1757627541826,-400.0,0.00029589,7]
[384929953,1757627541835,-400.0,0.00029589,7]
[384929954,1757627541845,-460.14592424,0.00029589,7]
[384929955,1757627541854,-464.24,0.00029589,7]
[384929956,1757627541864,-738.23,0.00029589,7]
[384929957,1757627541874,-400.0,0.00029589,7]
[384929958,1757627541884,-400.0,0.00029589,7]
[384929959,1757627541894,-588.76,0.00029589,7]
[384929960,1757627541904,-607.0,0.00029589,7]
[384929961,1757627541915,-400.0,0.00029589,7]
[384929962,1757627541924,-595.56,0.00029589,7]
[384929963,1757627541934,-541.07,0.00029589,7]
[384929964,1757627541944,-439.31,0.00029589,7]
[384929965,1757627541953,-400.0,0.00029589,7]
[384929966,1757627541963,-995.46,0.00029589,7]
[384929967,1757627541973,-400.0,0.00029589,7]
[384929968,1757627541982,-1889.23,0.00029589,7]
[384929969,1757627541992,-400.0,0.00029589,7]
[384929970,1757627542002,-1159.7,0.00029589,7]
[384929971,1757627542011,-404.78,0.00029589,7]
[384929972,1757627542021,-400.0,0.00029589,7]
[384929973,1757627542030,-892.23,0.00029589,7]
[384929974,1757627542039,-400.0,0.00029589,7]
[384929975,1757627542049,-568.18,0.00029589,7]
[384929976,1757627542059,-403.03,0.00029589,7]
[384929977,1757627542069,-1401.18,0.00029589,7]
[384929978,1757627542086,-458.22,0.00029589,7]
[384929979,1757627542096,-400.0,0.00029589,7]
[384929980,1757627542105,-1506.44,0.00029589,7]
[384929981,1757627542115,-400.0,0.00029589,7]
[384929982,1757627542124,-653.84,0.00029589,7]
[384929983,1757627542134,-1579.45,0.00029589,7]
[384929984,1757627542144,-400.0,0.00029589,7]
[384929985,1757627542154,-596.11,0.00029589,7]
[384929986,1757627542164,-614.15,0.00029589,7]
[384929987,1757627542173,-400.0,0.00029589,7]
[384929988,1757627542183,-400.0,0.00029589,7]
[384929989,1757627542193,-1013.76,0.00029589,7]
[384929990,1757627542203,-400.0,0.00029589,7]
[384929991,1757627542212,-400.0,0.00029589,7]
[384929992,1757627542222,-1714.22,0.00029589,7]
[384929993,1757627542232,-517.47,0.00029589,7]
[384929994,1757627542242,-1096.07,0.00029589,7]
[384929995,1757627542252,-400.0,0.00029589,7]
[384929996,1757627542261,-1253.03,0.00029589,7]
[384929997,1757627542271,-1145.97,0.00029589,7]
[384929998,1757627542282,-1745.67,0.00029589,7]
[384929999,1757627542291,-400.0,0.00029589,7]
[384930000,1757627542301,-727.42,0.00029589,7]
[384930001,1757627542310,-400.0,0.00029589,7]
[384930002,1757627542320,-583.39,0.00029589,7]
[384930003,1757627542331,-400.0,0.00029589,7]
[384930004,1757627542436,-400.0,0.00029589,7]
[384930005,1757627542446,-576.54,0.00029589,7]
[384930006,1757627542456,-400.0,0.00029589,7]
[384930007,1757627542466,-1541.62,0.00029589,7]
[384930008,1757627542476,-921.85,0.00029589,7]
[384930009,1757627542486,-426.23,0.00029589,7]
[384930010,1757627542495,-1433.65,0.00029589,7]
[384930011,1757627542505,-2304.65,0.00029589,7]
[384930012,1757627542514,-1278.47,0.00029589,7]
[384930013,1757627542523,-400.0,0.00029589,7]
[384930014,1757627542533,-506.5,0.00029589,7]
[384930015,1757627542542,-400.0,0.00029589,7]
[384930016,1757627542551,-1307.66,0.00029589,7]
[384930017,1757627542561,-158.163608,0.00029589,7]
[384930018,1757627542571,-163.704219,0.00029589,7]
[384930019,1757627542580,-400.0,0.00029589,7]
[384930020,1757627542590,-1245.35,0.00029589,7]
[384930021,1757627542600,-1371.0,0.00029589,7]
[384930022,1757627542609,-400.0,0.00029589,7]
[384930023,1757627542619,-400.0,0.00029589,7]
[384930024,1757627542628,-400.0,0.00029589,7]
[384930025,1757627542637,-506.24,0.00029589,7]
[384930026,1757627542647,-400.0,0.00029589,7]
[384930027,1757627542656,-1050.18,0.00029589,7]
[384930028,1757627542666,-400.0,0.00029589,7]
[384930029,1757627542676,-1616.64,0.00029589,7]
[384930030,1757627542686,-1120.7,0.00029589,7]
[384930031,1757627542696,-1151.78,0.00029589,7]
[384930032,1757627542705,-521.28,0.00029589,7]
[384930033,1757627542714,-1013.69,0.00029589,7]
[384930034,1757627542723,-400.0,0.00029589,7]
[384930035,1757627542732,-634.88,0.00029589,7]
[384930036,1757627542742,-400.0,0.00029589,7]
[384930037,1757627542751,-2767.55,0.00029589,7]
[384930038,1757627542760,-1117.29,0.00029589,7]
[384930039,1757627542769,-422.28,0.00029589,7]
[384930040,1757627542779,-428.8,0.00029589,7]
[384930041,1757627542788,-1735.26,0.00029589,7]
[384930042,1757627542797,-1678.88,0.00029589,7]
[384930043,1757627542807,-400.0,0.00029589,7]
[384930044,1757627542816,-461.71632892,0.00029589,7]
[384930045,1757627542827,-522.94,0.00029589,7]
[384930046,1757627542836,-752.82,0.00029589,7]
[384930047,1757627542845,-400.0,0.00029589,7]
[384930048,1757627542854,-412.38,0.00029589,7]
[384930049,1757627542865,-2172.72,0.00029589,7]
[384930050,1757627542874,-479.83,0.00029589,7]
[384930051,1757627542884,-400.0,0.00029589,7]
[384930052,1757627542893,-1991.58,0.00029589,7]
[384930053,1757627542902,-645.68,0.00029589,7]
[384930054,1757627542912,-684.67,0.00029589,7]
[384930055,1757627542921,-400.0,0.00029589,7]
[384930056,1757627542931,-1865.74,0.00029589,7]
[384930057,1757627542940,-1236.15,0.00029589,7]
[384930058,1757627542949,-703.53,0.00029589,7]
[384930059,1757627542958,-2285.17,0.00029589,7]
[384930060,1757627542968,-400.0,0.00029589,7]
[384930061,1757627542977,-1603.43,0.00029589,7]
[384930062,1757627542986,-620.1,0.00029589,7]
[384930063,1757627542997,-1983.9,0.00029589,7]
[384930064,1757627543007,-2163.46,0.00029589,7]
[384930065,1757627543016,-941.57,0.00029589,7]